bitfinex/quotes_BTCUSD_20250308
["timestamp","ask_amount","ask_price","bid_price","bid_amount"]
[1741397147974,0.01814843,86412.0,86411.0,0.011572]
[1741397148151,0.01814843,86412.0,86411.0,0.01272914]
[1741397148667,0.01814843,86412.0,86411.0,0.37609913]
[1741397148798,0.01814843,86412.0,86411.0,0.37494199]
[1741397150147,0.01814843,86412.0,86411.0,0.45534199]
[1741397151072,0.01814843,86412.0,86411.0,0.45834199]
[1741397151700,0.01814843,86412.0,86411.0,0.46334199]
[1741397151903,0.01814843,86412.0,86411.0,0.46034199]
[1741397152101,0.01814843,86412.0,86411.0,0.46634199]
[1741397154414,0.01814843,86412.0,86411.0,0.45476999]
[1741397154610,0.0001698,86415.0,86412.0,0.0002914]
[1741397154835,0.231443,86414.0,86411.0,0.44278999]
[1741397155236,0.231443,86414.0,86411.0,0.43678999]
[1741397155432,0.231443,86414.0,86411.0,0.43978999]
[1741397155632,0.243015,86414.0,86411.0,0.43478999]
[1741397155833,0.243015,86414.0,86412.0,0.002]
[1741397156093,0.0001698,86415.0,86413.0,0.23260316]
[1741397156278,0.0001698,86415.0,86414.0,0.01182347]
[1741397156508,0.0001698,86415.0,86414.0,0.01298046]
[1741397156716,0.0001698,86415.0,86414.0,0.09338046]
[1741397156912,0.0001698,86415.0,86414.0,0.09312899]
[1741397157123,0.0001698,86415.0,86414.0,0.09347533]
[1741397157277,0.0001698,86415.0,86414.0,0.09386535]
[1741397158553,0.0001698,86415.0,86414.0,0.09786535]
[1741397158848,0.0001698,86415.0,86414.0,0.10151901]
[1741397159050,0.0001698,86415.0,86414.0,0.409589]
[1741397159287,0.0001698,86415.0,86414.0,0.41243201]
[1741397159487,0.0001698,86415.0,86414.0,0.41643201]
[1741397159690,0.0001698,86415.0,86414.0,0.41243201]
[1741397159821,0.0001698,86415.0,86414.0,0.41643201]
[1741397160024,0.0001698,86415.0,86414.0,0.43994001]
[1741397160230,0.0117418,86415.0,86414.0,0.43998001]
[1741397160662,0.0117418,86415.0,86414.0,0.32446001]
[1741397160871,0.0117418,86415.0,86414.0,0.43598001]
[1741397161071,0.0117418,86415.0,86414.0,0.11995002]
[1741397161837,0.0117418,86415.0,86414.0,0.11595002]
[1741397162012,0.0117418,86415.0,86414.0,0.00039002]
[1741397162799,0.03308281,86415.0,86414.0,2e-08]
[1741397164469,0.03408281,86415.0,86414.0,2e-08]
[1741397164879,0.11348281,86415.0,86414.0,2e-08]
[1741397165207,0.11448281,86415.0,86414.0,2e-08]
[1741397165414,0.0439597,86415.0,86414.0,2e-08]
[1741397165620,0.06211101,86415.0,86414.0,2e-08]
[1741397168193,0.10961101,86415.0,86414.0,2e-08]
[1741397168505,0.10761101,86415.0,86414.0,2e-08]
[1741397168867,0.14376607,86415.0,86414.0,2e-08]
[1741397169019,0.14276607,86415.0,86414.0,2e-08]
[1741397169225,0.16776607,86415.0,86414.0,2e-08]
[1741397170621,0.13361101,86415.0,86414.0,2e-08]
[1741397170844,0.13261101,86415.0,86414.0,2e-08]
[1741397171070,0.13361101,86415.0,86414.0,2e-08]
[1741397171906,0.13261101,86415.0,86414.0,2e-08]
[1741397172107,0.13361101,86415.0,86414.0,2e-08]
[1741397172295,0.13461101,86415.0,86414.0,2e-08]
[1741397172445,0.13461101,86415.0,86414.0,6.2e-07]
[1741397172650,0.13361101,86415.0,86414.0,6.2e-07]
[1741397172871,0.13461101,86415.0,86414.0,6.2e-07]
[1741397173633,0.13461101,86415.0,86395.0,2.2e-07]
[1741397173634,0.243066,86396.0,86395.0,2.2e-07]
[1741397173854,0.318766,86396.0,86395.0,2.2e-07]
[1741397175025,0.37425959,86396.0,86395.0,2.2e-07]
[1741397175494,0.37525959,86396.0,86395.0,2.2e-07]
[1741397175695,0.29955959,86396.0,86395.0,2.2e-07]
[1741397175889,0.29855959,86396.0,86395.0,2.2e-07]
[1741397176136,0.29955959,86396.0,86395.0,2.2e-07]
[1741397176628,0.26540701,86396.0,86395.0,2.2e-07]
[1741397177457,0.26440701,86396.0,86395.0,2.2e-07]
[1741397177880,0.26540701,86396.0,86395.0,2.2e-07]
[1741397178282,0.28256228,86396.0,86395.0,2.2e-07]
[1741397178642,0.28356228,86396.0,86395.0,2.2e-07]
[1741397180763,0.01298902,86396.0,86395.0,2.2e-07]
[1741397180960,0.25605502,86396.0,86395.0,2.2e-07]
[1741397181531,0.28105502,86396.0,86395.0,2.2e-07]
[1741397181750,0.518966,86396.0,86395.0,2.2e-07]
[1741397181936,0.717266,86396.0,86395.0,2.2e-07]
[1741397182343,0.74040187,86396.0,86395.0,2.2e-07]
[1741397183091,0.39310187,86396.0,86395.0,2.2e-07]
[1741397183336,0.41810187,86396.0,86395.0,2.2e-07]
[1741397183510,0.41710187,86396.0,86395.0,2.2e-07]
[1741397183917,0.41810187,86396.0,86395.0,2.2e-07]
[1741397184359,0.41844147,86396.0,86395.0,2.2e-07]
[1741397184714,0.71176884,86396.0,86395.0,2.2e-07]
[1741397185034,0.73676884,86396.0,86395.0,2.2e-07]
[1741397186237,0.75492588,86396.0,86395.0,2.2e-07]
[1741397186943,0.62892588,86396.0,86395.0,2.2e-07]
[1741397187155,0.011576,86379.0,86362.0,0.115]
[1741397187536,0.243122,86376.0,86362.0,0.115]
[1741397187977,0.243122,86376.0,86375.0,0.0840398]
[1741397188395,0.243122,86376.0,86375.0,0.08415666]
[1741397190601,0.243122,86376.0,86375.0,0.19943666]
[1741397190804,0.011577,86376.0,86375.0,0.19943666]
[1741397192034,0.01815713,86379.0,86375.0,0.19943666]
[1741397192182,0.01815713,86379.0,86376.0,0.231545]
[1741397192383,0.01815713,86379.0,86375.0,0.19943666]
[1741397192640,0.02973313,86379.0,86375.0,0.19943666]
[1741397192846,0.011577,86376.0,86375.0,0.19943666]
[1741397193021,0.011577,86376.0,86375.0,0.20043666]
[1741397193422,0.26127313,86379.0,86375.0,0.20043666]
[1741397193423,0.01815713,86379.0,86376.0,0.231545]
[1741397193626,0.011576,86383.0,86377.0,0.011577]
[1741397193807,0.011576,86382.0,86377.0,0.011577]
[1741397194004,0.011576,86382.0,86377.0,0.243117]
[1741397194216,0.011576,86379.0,86375.0,0.20043666]
[1741397194432,0.011577,86378.0,86375.0,0.20343666]
[1741397194754,0.011577,86377.0,86375.0,0.20043666]
[1741397195331,0.011577,86377.0,86375.0,0.19943666]
[1741397195538,0.011577,86376.0,86375.0,0.19943666]
[1741397195749,0.03295562,86376.0,86375.0,0.19943666]
[1741397195957,0.03295562,86376.0,86375.0,0.08615666]
[1741397196164,0.03295562,86376.0,86375.0,0.19919666]
[1741397196676,0.05111163,86376.0,86375.0,0.19919666]
[1741397196976,0.05111163,86376.0,86375.0,0.20219666]
[1741397197537,0.28265663,86376.0,86375.0,0.19919666]
[1741397197734,0.28265663,86376.0,86375.0,0.20219666]
[1741397198464,0.28265663,86376.0,86375.0,0.20019666]
[1741397198666,0.03953463,86376.0,86375.0,0.20019666]
[1741397199069,0.03953463,86376.0,86375.0,0.21177366]
[1741397199471,0.03953463,86376.0,86375.0,0.44332166]
[1741397200315,0.03953463,86376.0,86375.0,0.75939165]
[1741397201631,0.03953463,86376.0,86375.0,0.76139165]
[1741397202049,0.03953463,86376.0,86375.0,0.76439165]
[1741397203301,0.28265663,86376.0,86375.0,0.52126665]
[1741397203500,0.03953463,86376.0,86375.0,0.52126665]
[1741397203729,0.05111163,86376.0,86375.0,0.52126665]
[1741397203967,0.03953463,86376.0,86375.0,0.52126665]
[1741397205582,0.05111163,86376.0,86375.0,0.52126665]
[1741397205692,0.03295562,86376.0,86375.0,0.52126665]
[1741397206540,0.03295562,86376.0,86375.0,0.51826665]
[1741397206743,0.03295562,86376.0,86375.0,0.51926665]
[1741397207265,0.03295562,86376.0,86375.0,0.51826665]
[1741397207466,0.03295562,86376.0,86375.0,0.51726665]
[1741397208352,0.03295562,86376.0,86375.0,0.51826665]
[1741397208766,0.05145103,86376.0,86375.0,0.51726665]
[1741397208996,0.05145103,86376.0,86375.0,0.51926665]
[1741397209611,0.05145103,86376.0,86375.0,0.20319666]
[1741397209725,0.03987403,86376.0,86375.0,0.20319666]
[1741397212291,0.03987403,86376.0,86375.0,0.21477366]
[1741397215467,0.03987403,86376.0,86375.0,0.53084365]
[1741397216879,0.03987403,86376.0,86375.0,0.51926665]
[1741397217487,0.03987403,86376.0,86375.0,0.51726665]
[1741397218217,0.05145103,86376.0,86375.0,0.51926665]
[1741397218527,0.05145103,86376.0,86375.0,0.44056665]
[1741397218938,0.05145103,86376.0,86375.0,0.43856665]
[1741397219198,0.05145103,86376.0,86375.0,0.43756665]
[1741397219719,0.05145103,86376.0,86375.0,0.43856665]
[1741397220130,0.05145103,86376.0,86375.0,0.43756665]
[1741397220511,0.05145103,86376.0,86375.0,0.43656665]
[1741397220715,0.05145103,86376.0,86375.0,0.32152665]
[1741397220988,0.03329542,86376.0,86375.0,0.32152665]
[1741397221161,0.03429542,86376.0,86375.0,0.32152665]
[1741397221333,0.03429542,86376.0,86375.0,0.00545666]
[1741397221528,0.02271842,86376.0,86375.0,0.00545666]
[1741397221734,0.02271842,86376.0,86375.0,0.08555666]
[1741397222365,0.02171842,86376.0,86375.0,0.13255666]
[1741397222754,0.02271842,86376.0,86375.0,0.13255666]
[1741397223135,0.02171842,86376.0,86375.0,0.13255666]
[1741397223554,0.26484042,86376.0,86375.0,0.13255666]
[1741397223976,0.03329542,86376.0,86375.0,0.13255666]
[1741397225475,0.05145126,86376.0,86375.0,0.13255666]
[1741397225993,0.03987426,86376.0,86375.0,0.13255666]
[1741397227580,0.03987426,86376.0,86375.0,0.14413366]
[1741397229996,0.03987426,86376.0,86375.0,0.13255666]
[1741397232520,0.03987426,86376.0,86375.0,0.28115666]
[1741397232720,0.03987426,86376.0,86375.0,0.29273366]
[1741397233177,0.03987426,86376.0,86375.0,0.60880365]
[1741397236195,0.02171842,86376.0,86375.0,0.60880365]
[1741397236757,0.0003398,86376.0,86375.0,0.60880365]
[1741397236988,0.0003398,86376.0,86375.0,0.60022665]
[1741397237208,0.0003398,86376.0,86375.0,0.60322665]
[1741397237912,0.0003398,86376.0,86375.0,0.61480365]
[1741397238495,0.0003398,86376.0,86375.0,0.61180365]
[1741397239129,0.0003398,86376.0,86375.0,0.60880365]
[1741397240029,0.0217963,86376.0,86375.0,0.61080365]
[1741397240233,0.0217963,86376.0,86375.0,0.61180365]
[1741397240390,0.03995164,86376.0,86375.0,0.61180365]
[1741397240965,0.03995164,86376.0,86375.0,0.61480365]
[1741397241735,0.03995164,86376.0,86375.0,0.60322665]
[1741397242338,0.03995164,86376.0,86375.0,0.72888365]
[1741397242544,0.01849514,86376.0,86375.0,0.72888365]
[1741397243089,0.01849514,86376.0,86375.0,0.72288365]
[1741397243238,0.01849514,86376.0,86375.0,0.72588365]
[1741397243443,0.01849514,86376.0,86375.0,0.72888365]
[1741397243653,0.01849514,86376.0,86375.0,0.72588365]
[1741397244030,0.01849514,86376.0,86375.0,0.72888365]
[1741397249535,0.01849514,86376.0,86375.0,0.60322665]
[1741397249735,0.01849514,86376.0,86375.0,0.79935165]
[1741397250112,0.01849514,86376.0,86375.0,0.67030665]
[1741397250258,0.01849514,86376.0,86375.0,0.59020665]
[1741397250473,0.03993873,86376.0,86375.0,0.59020665]
[1741397251364,0.03993873,86376.0,86375.0,0.60178365]
[1741397253113,0.01849514,86376.0,86375.0,0.60178365]
[1741397253559,0.01849514,86376.0,86375.0,0.67818365]
[1741397253818,0.01849514,86376.0,86375.0,0.56410365]
[1741397254000,0.01849514,86376.0,86375.0,0.67814365]
[1741397254239,0.01849514,86376.0,86375.0,0.67514365]
[1741397254635,0.01849514,86376.0,86375.0,1.20914365]
[1741397254790,0.0003398,86376.0,86375.0,1.28204365]
[1741397254968,0.0003398,86376.0,86375.0,1.28504365]
[1741397255561,0.0003398,86376.0,86375.0,1.28204365]
[1741397255918,0.0003398,86376.0,86375.0,1.28804365]
[1741397256144,0.0003396,86396.0,86380.0,0.31539039]
[1741397256274,0.0003396,86396.0,86395.0,0.243068]
[1741397256474,0.0003396,86396.0,86395.0,1.33079839]
[1741397257263,0.0003396,86396.0,86395.0,1.3453411]
[1741397258362,0.0003396,86396.0,86395.0,1.37419178]
[1741397258557,0.0003396,86396.0,86395.0,1.37919178]
[1741397258731,0.0003396,86396.0,86395.0,1.37319178]
[1741397258986,0.0003396,86396.0,86395.0,1.40019178]
[1741397259199,2.8e-07,86396.0,86395.0,1.43219178]
[1741397259568,0.10282797,86408.0,86407.0,0.243035]
[1741397259928,0.10282797,86408.0,86407.0,0.582035]
[1741397260545,0.01814649,86426.0,86407.0,0.582035]
[1741397260732,0.01157,86423.0,86414.0,0.243015]
[1741397260878,0.00055927,86415.0,86414.0,0.243015]
[1741397261085,0.00055927,86415.0,86414.0,0.011572]
[1741397261291,0.00055927,86415.0,86414.0,0.01272906]
[1741397262891,0.00055927,86415.0,86414.0,0.00115706]
[1741397263169,0.011572,86410.0,86408.0,0.84939039]
[1741397263382,0.011572,86410.0,86409.0,0.11404]
[1741397264168,0.011572,86410.0,86408.0,0.84939039]
[1741397264374,0.243029,86409.0,86408.0,0.85439039]
[1741397264560,0.243029,86409.0,86408.0,0.96843039]
[1741397264762,0.243029,86409.0,86408.0,0.96343039]
[1741397265339,0.011572,86409.0,86408.0,0.96343039]
[1741397265676,0.011572,86409.0,86408.0,0.96843039]
[1741397265894,0.011572,86409.0,86408.0,0.43443039]
[1741397266330,0.011572,86409.0,86408.0,0.44043039]
[1741397266824,0.011572,86409.0,86408.0,0.43443039]
[1741397267025,0.011572,86409.0,86408.0,0.42943039]
[1741397267336,0.011572,86409.0,86408.0,0.43843039]
[1741397267559,0.011572,86409.0,86408.0,0.43243039]
[1741397267955,0.011572,86409.0,86408.0,0.43543039]
[1741397268999,0.0117418,86409.0,86408.0,0.43543039]
[1741397270702,0.0001698,86409.0,86408.0,0.43543039]
[1741397271449,0.0001698,86409.0,86408.0,0.44700339]
[1741397271825,0.0001698,86409.0,86408.0,0.43543039]
[1741397275535,0.0001698,86409.0,86408.0,0.74819039]
[1741397275942,0.0001698,86409.0,86408.0,0.75976339]
[1741397277166,0.0001698,86409.0,86408.0,0.80706339]
[1741397277895,0.0001698,86409.0,86408.0,1.34106339]
[1741397281951,0.01831598,86409.0,86408.0,1.34106339]
[1741397282503,0.01831598,86409.0,86408.0,1.36472694]
[1741397282725,0.01831598,86409.0,86408.0,1.34106339]
[1741397282908,0.0001698,86409.0,86408.0,1.34106339]
[1741397283786,0.0001698,86409.0,86408.0,1.09842339]
[1741397284005,0.0001698,86409.0,86408.0,0.12]
[1741397284006,0.0117418,86409.0,86408.0,0.12]
[1741397284482,0.02613214,86409.0,86408.0,0.12]
[1741397285036,0.19000541,86412.0,86408.0,0.12]
[1741397285269,0.231452,86411.0,86408.0,0.12]
[1741397285476,0.011572,86409.0,86408.0,0.006]
[1741397285798,0.094372,86409.0,86408.0,0.006]
[1741397286107,0.24306,86398.0,86397.0,0.114]
[1741397287308,0.26121218,86398.0,86397.0,0.114]
[1741397288567,0.26221218,86398.0,86397.0,0.114]
[1741397288721,0.26321218,86398.0,86397.0,0.114]
[1741397290189,0.26321218,86398.0,86396.0,0.0003394]
[1741397290190,0.011574,86397.0,86396.0,0.0003394]
[1741397291848,0.012574,86397.0,86396.0,0.0003394]
[1741397292205,0.013574,86397.0,86396.0,0.0003394]
[1741397297196,0.096374,86397.0,86396.0,0.0003394]
[1741397297891,0.095374,86397.0,86396.0,0.0003394]
[1741397298098,0.094374,86397.0,86396.0,0.0003394]
[1741397298311,0.096374,86397.0,86396.0,0.0003394]
[1741397298710,0.11773366,86397.0,86396.0,0.0003394]
[1741397300806,0.03493366,86397.0,86396.0,0.0003394]
[1741397302652,0.013574,86397.0,86396.0,0.0003394]
[1741397304371,0.012574,86397.0,86396.0,0.0003394]
[1741397304616,0.011574,86397.0,86396.0,0.0003394]
[1741397304848,0.013574,86397.0,86396.0,0.0003394]
[1741397305077,0.012574,86397.0,86396.0,0.0003394]
[1741397305419,0.013574,86397.0,86396.0,0.0003394]
[1741397306288,0.03172643,86397.0,86396.0,0.0003394]
[1741397307125,0.03072643,86397.0,86396.0,0.0003394]
[1741397307352,0.02972643,86397.0,86396.0,0.0003394]
[1741397307567,0.05208927,86397.0,86396.0,0.0003394]
[1741397307771,0.05308927,86397.0,86396.0,0.0003394]
[1741397308239,0.05208927,86397.0,86396.0,0.0003394]
[1741397308471,0.05308927,86397.0,86396.0,0.0003394]
[1741397314682,0.05308927,86397.0,86396.0,0.1143794]
[1741397315998,0.05308927,86397.0,86396.0,0.0003394]
[1741397317658,0.03493684,86397.0,86396.0,0.0003394]
[1741397320394,0.03393684,86397.0,86396.0,0.0003394]
[1741397320623,0.05209008,86397.0,86396.0,0.0003394]
[1741397320757,0.05309008,86397.0,86396.0,0.0003394]
[1741397321184,0.05209008,86397.0,86396.0,0.0003394]
[1741397321384,0.05109008,86397.0,86396.0,0.0003394]
[1741397321607,0.05209008,86397.0,86396.0,0.0003394]
[1741397321807,0.05309008,86397.0,86396.0,0.0003394]
[1741397322148,0.05209008,86397.0,86396.0,0.0003394]
[1741397322330,0.05309008,86397.0,86396.0,0.0003394]
[1741397324178,0.08784325,86397.0,86396.0,0.0003394]
[1741397324368,0.08684325,86397.0,86396.0,0.0003394]
[1741397324566,0.07069001,86397.0,86396.0,0.0003394]
[1741397326792,0.04832717,86397.0,86396.0,0.0003394]
[1741397327002,0.04932717,86397.0,86396.0,0.0003394]
[1741397327720,0.06548174,86397.0,86396.0,0.0003394]
[1741397327891,0.06648174,86397.0,86396.0,0.0003394]
[1741397328272,0.06748174,86397.0,86396.0,0.0003394]
[1741397329704,0.0773,86395.0,86375.0,0.0053398]
[1741397329931,0.243122,86376.0,86375.0,8e-07]
[1741397330132,0.27887517,86376.0,86375.0,8e-07]
[1741397330505,0.30060498,86376.0,86375.0,8e-07]
[1741397330740,0.34016723,86376.0,86375.0,8e-07]
[1741397331163,0.34016723,86376.0,86375.0,0.00011766]
[1741397331312,0.34016723,86376.0,86375.0,6.6e-07]
[1741397332030,0.34116723,86376.0,86375.0,6.6e-07]
[1741397332445,0.268139,86370.0,86369.0,6e-08]
[1741397333466,0.28954178,86370.0,86369.0,6e-08]
[1741397333644,0.32514435,86370.0,86369.0,6e-08]
[1741397334451,0.28954178,86370.0,86369.0,6e-08]
[1741397334785,0.32512127,86370.0,86369.0,6e-08]
[1741397335407,0.28954178,86370.0,86369.0,6e-08]
[1741397335609,0.26525185,86370.0,86369.0,6e-08]
[1741397336012,0.27682985,86370.0,86369.0,6e-08]
[1741397337873,0.24319,86352.0,86344.0,0.11408]
[1741397338245,0.24319,86352.0,86342.0,0.23648]
[1741397338448,0.24319,86352.0,86342.0,0.1224]
[1741397338449,0.25761201,86352.0,86342.0,0.1224]
[1741397338653,0.27577403,86352.0,86342.0,0.23648]
[1741397339733,0.29717681,86352.0,86342.0,0.23648]
[1741397341201,0.30585312,86352.0,86351.0,0.0005697]
[1741397346648,0.29717681,86352.0,86351.0,0.0005697]
[1741397348055,0.0395648,86352.0,86351.0,0.0005697]
[1741397348252,0.0395648,86352.0,86351.0,0.15576163]
[1741397348451,0.02140278,86352.0,86351.0,0.15576163]
[1741397348832,0.24317,86359.0,86358.0,0.0827]
[1741397349180,0.24317,86359.0,86358.0,0.19678]
[1741397349753,0.24317,86359.0,86358.0,0.11408]
[1741397349968,0.24319,86352.0,86351.0,0.0045697]
[1741397350566,0.24319,86352.0,86351.0,0.0005697]
[1741397350763,0.011579,86358.0,86356.0,0.01271193]
[1741397350945,0.011579,86358.0,86357.0,0.01271193]
[1741397351152,0.011578,86369.0,86361.0,0.02429093]
[1741397351391,0.243152,86366.0,86362.0,0.11408]
[1741397351596,0.011578,86364.0,86362.0,0.11408]
[1741397351774,0.011579,86363.0,86362.0,0.11408]
[1741397352761,0.0213331,86365.0,86362.0,0.11408]
[1741397353364,0.011578,86365.0,86362.0,0.11408]
[1741397353565,0.011579,86363.0,86362.0,0.11408]
[1741397355607,0.02973859,86363.0,86362.0,0.11408]
[1741397358899,0.011578,86365.0,86362.0,0.11408]
[1741397359294,0.01815971,86363.0,86362.0,0.11408]
[1741397359496,0.02973871,86363.0,86362.0,0.11408]
[1741397360540,0.231583,86362.0,86360.0,0.0827]
[1741397360724,0.24319,86352.0,86351.0,0.0005697]
[1741397361543,0.26135181,86352.0,86351.0,0.0005697]
[1741397361847,0.24319,86352.0,86351.0,0.0005697]
[1741397362245,0.26135176,86352.0,86351.0,0.0005697]
[1741397363555,0.28273903,86352.0,86351.0,0.0005697]
[1741397364559,0.26457727,86352.0,86351.0,0.0005697]
[1741397365303,0.27331248,86352.0,86351.0,0.0005697]
[1741397367743,0.29147584,86352.0,86351.0,0.0005697]
[1741397371865,0.3271024,86352.0,86351.0,0.0005697]
[1741397372632,0.30571513,86352.0,86351.0,0.0005697]
[1741397373131,0.11457857,86352.0,86351.0,0.0005697]
[1741397373454,0.34618857,86352.0,86351.0,0.0005697]
[1741397373657,0.36904661,86352.0,86351.0,0.0005697]
[1741397375143,0.29294661,86352.0,86351.0,0.0005697]
[1741397375757,0.39530371,86352.0,86351.0,0.0005697]
[1741397379023,0.31429817,86352.0,86351.0,0.0005697]
[1741397384115,0.32658624,86352.0,86351.0,0.0005697]
[1741397384292,0.31429817,86352.0,86351.0,0.0005697]
[1741397384471,0.29294661,86352.0,86351.0,0.0005697]
[1741397386947,0.39530371,86352.0,86351.0,0.0005697]
[1741397388634,0.39530371,86352.0,86331.0,0.0004]
[1741397388635,0.243246,86332.0,86331.0,0.0004]
[1741397389219,0.25553407,86332.0,86331.0,0.0004]
[1741397390030,0.29109732,86332.0,86331.0,0.0004]
[1741397390461,0.25553407,86332.0,86331.0,0.0004]
[1741397390792,0.29109,86332.0,86331.0,0.0004]
[1741397391339,0.25553407,86332.0,86331.0,0.0004]
[1741397391541,0.243246,86332.0,86331.0,0.0004]
[1741397391753,0.25553407,86332.0,86331.0,0.0004]
[1741397392358,0.29108397,86332.0,86331.0,1e-06]
[1741397392566,0.32518092,86332.0,86331.0,1e-06]
[1741397392766,0.34848803,86332.0,86331.0,1e-06]
[1741397394331,0.34848803,86332.0,86313.0,0.0001698]
[1741397394332,0.25554507,86328.0,86327.0,6e-07]
[1741397394572,0.28964202,86328.0,86327.0,6e-07]
[1741397394775,0.40372202,86328.0,86327.0,6e-07]
[1741397395047,0.43926279,86328.0,86327.0,6e-07]
[1741397395395,0.40372202,86328.0,86327.0,6e-07]
[1741397395715,0.243351,86295.0,86294.0,0.0650577]
[1741397396322,0.18145924,86297.0,86294.0,0.0650577]
[1741397396723,0.011588,86295.0,86294.0,0.0650577]
[1741397398108,0.01817241,86299.0,86295.0,0.24447493]
[1741397398309,0.01817241,86299.0,86298.0,0.07239893]
[1741397398711,0.01817241,86299.0,86298.0,0.46408932]
[1741397399878,0.01817241,86299.0,86298.0,0.46608932]
[1741397400283,0.01817241,86299.0,86298.0,0.46808932]
[1741397401910,0.011584,86321.0,86320.0,0.1283]
[1741397402116,0.011584,86321.0,86320.0,0.19468]
[1741397402314,0.011584,86321.0,86320.0,0.11408]
[1741397402446,0.243291,86316.0,86315.0,0.0806]
[1741397402649,0.243291,86316.0,86312.0,0.11408]
[1741397402650,0.243299,86313.0,86312.0,0.11408]
[1741397403116,0.243299,86313.0,86312.0,0.11418377]
[1741397405195,0.244299,86313.0,86312.0,0.11418377]
[1741397405661,0.245299,86313.0,86312.0,0.11418377]
[1741397405847,0.243299,86313.0,86312.0,0.11418377]
[1741397406155,0.245299,86313.0,86312.0,0.11418377]
[1741397406477,0.244299,86313.0,86312.0,0.11418377]
[1741397406855,0.245299,86313.0,86312.0,0.11418377]
[1741397407073,0.244299,86313.0,86312.0,0.11418377]
[1741397407276,0.245299,86313.0,86312.0,0.11418377]
[1741397407997,0.013585,86313.0,86312.0,0.11418377]
[1741397408135,0.03175495,86313.0,86312.0,0.11418377]
[1741397408333,0.02016995,86313.0,86312.0,0.2180807]
[1741397408517,0.02016995,86313.0,86312.0,0.53347109]
[1741397408721,0.01916995,86313.0,86312.0,0.57977109]
[1741397409524,0.01816995,86313.0,86312.0,0.57977109]
[1741397409710,0.01816995,86313.0,86312.0,0.58377109]
[1741397410326,0.01816995,86313.0,86312.0,0.58777109]
[1741397410909,0.01816995,86313.0,86312.0,0.58377109]
[1741397411110,0.00869128,86339.0,86312.0,0.58377109]
[1741397411111,0.011583,86332.0,86327.0,0.1259]
[1741397411314,0.011583,86329.0,86328.0,0.11408]
[1741397411916,0.011585,86318.0,86317.0,0.1259]
[1741397412123,0.011585,86318.0,86317.0,0.23998]
[1741397412523,0.243286,86318.0,86317.0,0.23998]
[1741397412928,0.011584,86323.0,86319.0,0.01271193]
[1741397413551,0.011585,86318.0,86317.0,0.23998]
[1741397413724,0.011585,86318.0,86317.0,0.1329]
[1741397413941,0.011585,86318.0,86317.0,0.20068]
[1741397414151,0.011585,86318.0,86317.0,0.19768]
[1741397414561,0.011585,86318.0,86317.0,0.11808]
[1741397414924,0.011585,86318.0,86317.0,0.11408]
[1741397415329,0.011585,86313.0,86312.0,0.00010377]
[1741397416913,0.011585,86313.0,86312.0,0.00110377]
[1741397417316,0.011585,86313.0,86312.0,0.00210377]
[1741397417518,0.0471514,86313.0,86312.0,0.00110377]
[1741397417979,0.0471514,86313.0,86312.0,0.00010377]
[1741397418512,0.0481514,86313.0,86312.0,0.00010377]
[1741397419055,0.07151233,86313.0,86312.0,0.00010377]
[1741397419213,0.05311848,86313.0,86312.0,0.00010377]
[1741397419416,0.08867783,86313.0,86312.0,0.00010377]
[1741397419620,0.08967783,86313.0,86312.0,0.00010377]
[1741397420245,0.05411848,86313.0,86312.0,0.00010377]
[1741397420448,0.10195657,86313.0,86312.0,0.00010377]
[1741397421112,0.11049622,86313.0,86312.0,0.00010377]
[1741397421281,0.0749462,86313.0,86312.0,7.7e-07]
[1741397421490,0.11049469,86313.0,86312.0,7.7e-07]
[1741397421987,0.243348,86296.0,86295.0,0.0001699]
[1741397422409,0.243348,86296.0,86295.0,0.00055951]
[1741397423213,0.244348,86296.0,86295.0,0.00055951]
[1741397423661,0.243348,86296.0,86295.0,0.00055951]
[1741397425048,0.244348,86296.0,86295.0,0.00055951]
[1741397425870,0.25663607,86296.0,86295.0,5.1e-07]
[1741397426075,0.243359,86292.0,86291.0,5.1e-07]
[1741397427216,0.25565507,86289.0,86288.0,2.1e-07]
[1741397427401,0.25565507,86289.0,86264.0,0.0001698]
[1741397427402,0.243415,86272.0,86264.0,0.0001698]
[1741397427987,0.25570307,86272.0,86264.0,0.0001698]
[1741397428215,0.01228807,86270.0,86264.0,0.0001698]
[1741397428387,0.25572307,86265.0,86264.0,8e-07]
[1741397428595,0.36980307,86265.0,86264.0,8e-07]
[1741397428822,0.36980307,86265.0,86251.0,0.0004]
[1741397428823,0.243471,86252.0,86251.0,0.0004]
[1741397429220,0.27756795,86252.0,86251.0,0.0004]
[1741397429433,0.24385964,86252.0,86251.0,0.0004]
[1741397429631,0.26204395,86252.0,86251.0,0.0004]
[1741397430236,0.27927032,86252.0,86251.0,0.0004]
[1741397432124,0.26108601,86252.0,86251.0,0.0004]
[1741397433579,0.26995957,86252.0,86251.0,0.0004]
[1741397435202,0.28814423,86252.0,86251.0,0.0004]
[1741397435606,0.28714423,86252.0,86251.0,0.0004]
[1741397437154,0.28714423,86252.0,86251.0,0.0005698]
[1741397437705,0.26895957,86252.0,86251.0,0.0005698]
[1741397438392,0.26895957,86252.0,86231.0,0.0462]
[1741397438393,0.243585,86212.0,86208.0,0.0001699]
[1741397438607,0.243585,86212.0,86208.0,0.00012991]
[1741397438608,0.358305,86212.0,86208.0,0.00012991]
[1741397438807,0.358305,86212.0,86199.0,0.005]
[1741397438808,0.243618,86200.0,86199.0,0.005]
[1741397439335,0.243618,86200.0,86171.0,0.0004]
[1741397439336,0.243697,86172.0,86171.0,0.0004]
[1741397439544,0.30736895,86172.0,86171.0,0.0004]
[1741397439966,0.32416842,86172.0,86171.0,0.0004]
[1741397440169,0.32416842,86172.0,86164.0,0.0051698]
[1741397440170,0.025,86171.0,86164.0,8e-07]
[1741397440394,0.025,86171.0,86147.0,0.00161638]
[1741397440395,0.243737,86158.0,86147.0,0.00161638]
[1741397440613,0.384057,86158.0,86147.0,0.00161638]
[1741397440815,0.45393766,86158.0,86147.0,0.00161638]
[1741397441030,0.47740714,86158.0,86147.0,0.00161638]
[1741397441204,0.257158,86148.0,86147.0,3.8e-07]
[1741397441525,0.362245,86148.0,86147.0,3.8e-07]
[1741397441731,0.387245,86148.0,86147.0,3.8e-07]
[1741397441883,0.243765,86148.0,86147.0,3.8e-07]
[1741397442090,0.26197367,86148.0,86147.0,3.8e-07]
[1741397442298,0.28697367,86148.0,86147.0,3.8e-07]
[1741397442502,0.363165,86148.0,86147.0,3.8e-07]
[1741397443193,0.243765,86148.0,86147.0,3.8e-07]
[1741397444482,0.011607,86148.0,86147.0,3.8e-07]
[1741397444707,0.011606,86155.0,86147.0,3.8e-07]
[1741397444708,0.011607,86150.0,86147.0,3.8e-07]
[1741397444913,0.011607,86148.0,86147.0,3.8e-07]
[1741397445447,0.011607,86150.0,86147.0,3.8e-07]
[1741397445648,0.011607,86148.0,86147.0,3.8e-07]